[Event "Titled Tuesday Blitz June 13 Late 2023"]
[White "Bernado Lopez, Roger"]
[Black "Schnaider, Ilan"]
[WhiteFideId "24585009"]
[BlackFideId "169013"]
[WhiteElo "2097"]
[BlackElo "2224"]
[Result "0-1"]
[Round "11"]
[TimeControl "180+2"]
[Date "2023.06.13"]
[WhiteClock "0:00:29"]
[BlackClock "0:02:01"]
[Board "40"]

1. e4 {[%clk 0:03:00]}  c5 {[%clk 0:02:59]} 2. Nf3 {[%clk 0:03:01]}  d6 {[%clk 0:02:59]} 3. d4 {[%clk 0:03:01]}  cxd4 {[%clk 0:03:00]} 4. Nxd4 {[%clk 0:03:02]}  Nf6 {[%clk 0:03:00]} 5. Nc3 {[%clk 0:03:03]}  a6 {[%clk 0:03:00]} 6. Bg5 {[%clk 0:03:03]}  e6 {[%clk 0:03:00]} 7. f4 {[%clk 0:03:03]}  Be7 {[%clk 0:03:00]} 8. Qf3 {[%clk 0:03:04]}  Qc7 {[%clk 0:03:01]} 9. O-O-O {[%clk 0:03:04]}  Nbd7 {[%clk 0:03:01]} 10. g4 {[%clk 0:03:04]}  h6 {[%clk 0:03:00]} 11. Bxf6 {[%clk 0:03:04]}  Bxf6 {[%clk 0:03:00]} 12. h4 {[%clk 0:03:04]}  Bxd4 {[%clk 0:02:59]} 13. Rxd4 {[%clk 0:03:03]}  b5 {[%clk 0:02:57]} 14. Bxb5 {[%clk 0:02:46]}  axb5 {[%clk 0:02:40]} 15. Nxb5 {[%clk 0:02:46]}  Qc5 {[%clk 0:02:37]} 16. Nxd6+ {[%clk 0:02:44]}  Ke7 {[%clk 0:02:37]} 17. Rhd1 {[%clk 0:02:37]}  Rxa2 {[%clk 0:02:37]} 18. Nxc8+ {[%clk 0:02:34]}  Rxc8 {[%clk 0:02:35]} 19. Rxd7+ {[%clk 0:02:34]}  Ke8 {[%clk 0:02:35]} 20. c3 {[%clk 0:01:23]}  Qb5 {[%clk 0:02:15]} 21. Kd2 {[%clk 0:00:30]}  Qxd7+ {[%clk 0:02:08]} 22. Ke1 {[%clk 0:00:30]}  Qb5 {[%clk 0:02:06]} 23. e5 {[%clk 0:00:29]}  Qxb2 {[%clk 0:02:01]} 24. Qe4 {[%clk 0:00:29]} 0-1


[Site "https://www.chess.com"]

[Event "Titled Tuesday Blitz June 13 Late 2023"]
[White "Zhigalko, Sergei"]
[Black "GAO"]
[WhiteFideId "13502956"]
[WhiteElo "2626"]
[BlackElo "2426"]
[Result "1-0"]
[Round "11"]
[TimeControl "180+2"]
[Date "2023.06.13"]
[WhiteClock "0:00:51"]
[BlackClock "0:00:03"]
[Board "41"]

1. g4 {[%clk 0:02:59]}  d5 {[%clk 0:02:58]} 2. Bg2 {[%clk 0:02:59]}  c6 {[%clk 0:02:54]} 3. g5 {[%clk 0:02:58]}  e5 {[%clk 0:02:54]} 4. h4 {[%clk 0:02:58]}  Bd6 {[%clk 0:02:54]} 5. d3 {[%clk 0:02:54]}  Bg4 {[%clk 0:02:54]} 6. c4 {[%clk 0:02:47]}  Ne7 {[%clk 0:02:53]} 7. Nc3 {[%clk 0:02:45]}  Bb4 {[%clk 0:02:41]} 8. Bd2 {[%clk 0:02:32]}  O-O {[%clk 0:02:39]} 9. Qb3 {[%clk 0:02:26]}  Na6 {[%clk 0:02:38]} 10. cxd5 {[%clk 0:02:16]}  cxd5 {[%clk 0:02:36]} 11. Nf3 {[%clk 0:02:10]}  d4 {[%clk 0:02:33]} 12. Ne4 {[%clk 0:02:10]}  Bxd2+ {[%clk 0:02:32]} 13. Nfxd2 {[%clk 0:02:11]}  b6 {[%clk 0:02:17]} 14. h5 {[%clk 0:02:02]}  Be6 {[%clk 0:02:13]} 15. Qb5 {[%clk 0:01:51]}  Nc5 {[%clk 0:01:44]} 16. Nxc5 {[%clk 0:01:49]}  bxc5 {[%clk 0:01:45]} 17. Bxa8 {[%clk 0:01:38]}  Qxa8 {[%clk 0:01:45]} 18. Ne4 {[%clk 0:01:39]}  Bd5 {[%clk 0:01:23]} 19. f3 {[%clk 0:01:39]}  Nf5 {[%clk 0:01:15]} 20. h6 {[%clk 0:01:36]}  Rb8 {[%clk 0:00:56]} 21. Qxc5 {[%clk 0:01:28]}  Rxb2 {[%clk 0:00:56]} 22. hxg7 {[%clk 0:01:24]}  Bxe4 {[%clk 0:00:48]} 23. fxe4 {[%clk 0:01:20]}  Ne3 {[%clk 0:00:39]} 24. Rxh7 {[%clk 0:00:57]}  Nc2+ {[%clk 0:00:14]} 25. Kf2 {[%clk 0:00:53]}  Kxh7 {[%clk 0:00:04]} 26. Qf8 {[%clk 0:00:53]}  Qxf8 {[%clk 0:00:03]} 27. gxf8=Q {[%clk 0:00:53]}  Nxa1 {[%clk 0:00:04]} 28. Qxf7+ {[%clk 0:00:52]}  Kh8 {[%clk 0:00:04]} 29. g6 {[%clk 0:00:52]}  Rb7 {[%clk 0:00:03]} 30. Qf8# {[%clk 0:00:51]} 1-0


[Site "https://www.chess.com"]

[Event "Titled Tuesday Blitz June 13 Late 2023"]
[White "Pinheiro, Iung Alicio de O."]
[Black "Martinez Ramirez, Lennis"]
[WhiteFideId "2104350"]
[BlackFideId "3509079"]
[WhiteElo "2283"]
[BlackElo "2410"]
[Result "0-1"]
[Round "11"]
[TimeControl "180+2"]
[Date "2023.06.13"]
[WhiteClock "0:00:03"]
[BlackClock "0:00:10"]
[Board "42"]

1. e4 {[%clk 0:03:00]}  c5 {[%clk 0:02:59]} 2. Nc3 {[%clk 0:02:59]}  Nc6 {[%clk 0:03:00]} 3. Bb5 {[%clk 0:02:57]}  Nd4 {[%clk 0:03:00]} 4. Bc4 {[%clk 0:02:52]}  e6 {[%clk 0:03:00]} 5. Nge2 {[%clk 0:02:51]}  Nf6 {[%clk 0:02:55]} 6. d3 {[%clk 0:02:45]}  Nc6 {[%clk 0:02:50]} 7. Bg5 {[%clk 0:02:36]}  a6 {[%clk 0:02:44]} 8. a3 {[%clk 0:02:23]}  Be7 {[%clk 0:02:40]} 9. Bxf6 {[%clk 0:02:15]}  Bxf6 {[%clk 0:02:40]} 10. O-O {[%clk 0:02:15]}  b5 {[%clk 0:02:38]} 11. Ba2 {[%clk 0:02:14]}  Bb7 {[%clk 0:02:27]} 12. Ng3 {[%clk 0:02:14]}  g6 {[%clk 0:02:25]} 13. f4 {[%clk 0:02:12]}  Bd4+ {[%clk 0:02:24]} 14. Kh1 {[%clk 0:02:11]}  h5 {[%clk 0:02:15]} 15. e5 {[%clk 0:02:06]}  d6 {[%clk 0:02:09]} 16. exd6 {[%clk 0:01:43]}  Qxd6 {[%clk 0:02:10]} 17. Nge4 {[%clk 0:01:40]}  Qe7 {[%clk 0:02:09]} 18. Rb1 {[%clk 0:01:34]}  h4 {[%clk 0:02:09]} 19. h3 {[%clk 0:01:29]}  Rd8 {[%clk 0:02:04]} 20. Ne2 {[%clk 0:01:12]}  Bg7 {[%clk 0:02:00]} 21. Qe1 {[%clk 0:01:12]}  Kf8 {[%clk 0:01:36]} 22. Rd1 {[%clk 0:01:03]}  Bxb2 {[%clk 0:01:33]} 23. c3 {[%clk 0:01:01]}  Bxa3 {[%clk 0:01:31]} 24. Ng5 {[%clk 0:00:51]}  c4 {[%clk 0:01:17]} 25. dxc4 {[%clk 0:00:48]}  Rxd1 {[%clk 0:01:18]} 26. Qxd1 {[%clk 0:00:48]}  b4 {[%clk 0:01:16]} 27. Nd4 {[%clk 0:00:40]}  bxc3 {[%clk 0:01:13]} 28. c5 {[%clk 0:00:40]}  Nd8 {[%clk 0:00:39]} 29. c6 {[%clk 0:00:36]}  Bxc6 {[%clk 0:00:37]} 30. Nxc6 {[%clk 0:00:30]}  Nxc6 {[%clk 0:00:36]} 31. Qd3 {[%clk 0:00:30]}  Bb2 {[%clk 0:00:26]} 32. Rd1 {[%clk 0:00:22]}  Kg7 {[%clk 0:00:26]} 33. Re1 {[%clk 0:00:20]}  Rd8 {[%clk 0:00:25]} 34. Qc4 {[%clk 0:00:21]}  Rd6 {[%clk 0:00:25]} 35. Ne4 {[%clk 0:00:19]}  a5 {[%clk 0:00:18]} 36. Bb1 {[%clk 0:00:18]}  Nb4 {[%clk 0:00:17]} 37. Nxd6 {[%clk 0:00:16]}  Qxd6 {[%clk 0:00:18]} 38. Qe4 {[%clk 0:00:17]}  Qc5 {[%clk 0:00:16]} 39. Kh2 {[%clk 0:00:16]}  a4 {[%clk 0:00:15]} 40. Re2 {[%clk 0:00:16]}  a3 {[%clk 0:00:15]} 41. f5 {[%clk 0:00:13]}  exf5 {[%clk 0:00:13]} 42. Qxh4 {[%clk 0:00:13]}  a2 {[%clk 0:00:12]} 43. Bxa2 {[%clk 0:00:12]}  Nxa2 {[%clk 0:00:12]} 44. Re8 {[%clk 0:00:12]}  Qd6+ {[%clk 0:00:12]} 45. Kh1 {[%clk 0:00:13]}  Qd1+ {[%clk 0:00:12]} 46. Kh2 {[%clk 0:00:13]}  Qh5 {[%clk 0:00:12]} 47. Qd4+ {[%clk 0:00:13]}  f6 {[%clk 0:00:13]} 48. Qd7+ {[%clk 0:00:13]}  Kh6 {[%clk 0:00:13]} 49. Rh8+ {[%clk 0:00:13]}  Kg5 {[%clk 0:00:13]} 50. Rxh5+ {[%clk 0:00:12]}  Kxh5 {[%clk 0:00:14]} 51. Qd3 {[%clk 0:00:13]}  Nc1 {[%clk 0:00:12]} 52. Qf3+ {[%clk 0:00:13]}  Kh6 {[%clk 0:00:12]} 53. Qf4+ {[%clk 0:00:13]}  Kg7 {[%clk 0:00:12]} 54. Qc7+ {[%clk 0:00:13]}  Kh6 {[%clk 0:00:12]} 55. Qd8 {[%clk 0:00:13]}  Kg5 {[%clk 0:00:09]} 56. Kg3 {[%clk 0:00:12]}  Ne2+ {[%clk 0:00:09]} 57. Kf2 {[%clk 0:00:12]}  Nf4 {[%clk 0:00:09]} 58. g3 {[%clk 0:00:10]}  Nxh3+ {[%clk 0:00:08]} 59. Kf3 {[%clk 0:00:11]}  Ng1+ {[%clk 0:00:07]} 60. Kg2 {[%clk 0:00:10]}  Ne2 {[%clk 0:00:07]} 61. Kf3 {[%clk 0:00:10]}  Nc1 {[%clk 0:00:07]} 62. Qh8 {[%clk 0:00:09]}  f4 {[%clk 0:00:04]} 63. Qh4+ {[%clk 0:00:06]}  Kf5 {[%clk 0:00:05]} 64. Qxf4+ {[%clk 0:00:06]}  Ke6 {[%clk 0:00:05]} 65. Qe4+ {[%clk 0:00:06]}  Kd6 {[%clk 0:00:05]} 66. Qxg6 {[%clk 0:00:06]}  Ke6 {[%clk 0:00:03]} 67. Qe4+ {[%clk 0:00:05]}  Kf7 {[%clk 0:00:03]} 68. g4 {[%clk 0:00:06]}  Kg7 {[%clk 0:00:03]} 69. Qe7+ {[%clk 0:00:05]}  Kg6 {[%clk 0:00:03]} 70. Qe8+ {[%clk 0:00:05]}  Kg7 {[%clk 0:00:04]} 71. Qd7+ {[%clk 0:00:03]}  Kg6 {[%clk 0:00:04]} 72. Qd5 {[%clk 0:00:04]}  Kg7 {[%clk 0:00:04]} 73. Kg3 {[%clk 0:00:02]}  Ne2+ {[%clk 0:00:03]} 74. Kh4 {[%clk 0:00:03]}  Nf4 {[%clk 0:00:03]} 75. Qd7+ {[%clk 0:00:03]}  Kh6 {[%clk 0:00:03]} 76. Qf5 {[%clk 0:00:01]}  Ng6+ {[%clk 0:00:04]} 77. Kg3 {[%clk 0:00:02]}  Kg7 {[%clk 0:00:05]} 78. Qd7+ {[%clk 0:00:02]}  Kh6 {[%clk 0:00:05]} 79. Kg2 {[%clk 0:00:02]}  c2 {[%clk 0:00:05]} 80. Kf3 {[%clk 0:00:02]}  c1=Q {[%clk 0:00:05]} 81. Qd8 {[%clk 0:00:02]}  Qf4+ {[%clk 0:00:05]} 82. Ke2 {[%clk 0:00:02]}  Qxg4+ {[%clk 0:00:05]} 83. Kd3 {[%clk 0:00:03]}  Qe6 {[%clk 0:00:05]} 84. Kc2 {[%clk 0:00:03]}  Be5 {[%clk 0:00:05]} 85. Qd2+ {[%clk 0:00:03]}  Nf4 {[%clk 0:00:04]} 86. Qh2+ {[%clk 0:00:03]}  Qh3 {[%clk 0:00:05]} 87. Qd2 {[%clk 0:00:03]}  Qd3+ {[%clk 0:00:05]} 88. Qxd3 {[%clk 0:00:03]}  Nxd3 {[%clk 0:00:06]} 89. Kxd3 {[%clk 0:00:04]}  Kg5 {[%clk 0:00:06]} 90. Ke4 {[%clk 0:00:05]}  Kg4 {[%clk 0:00:06]} 91. Ke3 {[%clk 0:00:05]}  f5 {[%clk 0:00:07]} 92. Kf2 {[%clk 0:00:06]}  f4 {[%clk 0:00:07]} 93. Kf1 {[%clk 0:00:07]}  f3 {[%clk 0:00:08]} 94. Kf2 {[%clk 0:00:07]}  Bd4+ {[%clk 0:00:09]} 95. Kf1 {[%clk 0:00:08]}  Kg3 {[%clk 0:00:09]} 96. Ke1 {[%clk 0:00:08]}  Kg2 {[%clk 0:00:09]} 97. Kd1 {[%clk 0:00:09]}  f2 {[%clk 0:00:10]} 98. Kd2 {[%clk 0:00:03]}  f1=Q {[%clk 0:00:10]} 0-1


[Site "https://www.chess.com"]

[Event "Titled Tuesday Blitz June 13 Late 2023"]
[White "Musovic, Armin"]
[Black "Bjelobrk, Igor"]
[WhiteFideId "939935"]
[BlackFideId "4300726"]
[WhiteElo "2322"]
[BlackElo "2319"]
[Result "0-1"]
[Round "11"]
[TimeControl "180+2"]
[Date "2023.06.13"]
[WhiteClock "0:00:00"]
[BlackClock "0:00:12"]
[Board "46"]

1. a3 {[%clk 0:03:00]}  d5 {[%clk 0:02:57]} 2. Nc3 {[%clk 0:03:00]}  Nf6 {[%clk 0:02:58]} 3. d3 {[%clk 0:03:00]}  Nbd7 {[%clk 0:02:54]} 4. Bg5 {[%clk 0:03:00]}  h6 {[%clk 0:02:54]} 5. Bh4 {[%clk 0:03:00]}  c6 {[%clk 0:02:52]} 6. e4 {[%clk 0:03:00]}  dxe4 {[%clk 0:02:51]} 7. dxe4 {[%clk 0:03:00]}  e5 {[%clk 0:02:49]} 8. h3 {[%clk 0:02:58]}  a5 {[%clk 0:02:48]} 9. Nf3 {[%clk 0:02:55]}  Qc7 {[%clk 0:02:48]} 10. Bg3 {[%clk 0:02:54]}  Nh5 {[%clk 0:02:44]} 11. Bh2 {[%clk 0:02:53]}  Nf4 {[%clk 0:02:44]} 12. Qd2 {[%clk 0:02:48]}  g5 {[%clk 0:02:29]} 13. g3 {[%clk 0:02:42]}  Ne6 {[%clk 0:02:27]} 14. Bc4 {[%clk 0:02:41]}  Ndc5 {[%clk 0:02:19]} 15. g4 {[%clk 0:02:20]}  Bg7 {[%clk 0:02:10]} 16. O-O-O {[%clk 0:02:08]}  b5 {[%clk 0:01:46]} 17. Bxb5 {[%clk 0:01:40]}  cxb5 {[%clk 0:01:45]} 18. Nxb5 {[%clk 0:01:41]}  Qb6 {[%clk 0:01:29]} 19. Nd6+ {[%clk 0:01:36]}  Kf8 {[%clk 0:01:27]} 20. Nxe5 {[%clk 0:01:11]}  Nf4 {[%clk 0:00:55]} 21. Bxf4 {[%clk 0:00:54]}  gxf4 {[%clk 0:00:56]} 22. Ndxf7 {[%clk 0:00:47]}  Be6 {[%clk 0:00:52]} 23. Qxf4 {[%clk 0:00:31]}  Rb8 {[%clk 0:00:23]} 24. Nxh8+ {[%clk 0:00:08]}  Kg8 {[%clk 0:00:23]} 25. b4 {[%clk 0:00:09]}  axb4 {[%clk 0:00:22]} 26. Nc4 {[%clk 0:00:03]}  Bxc4 {[%clk 0:00:20]} 27. a4 {[%clk 0:00:03]}  Kxh8 {[%clk 0:00:19]} 28. Rd6 {[%clk 0:00:03]}  Qa7 {[%clk 0:00:13]} 29. Rxh6+ {[%clk 0:00:00]}  Kg8 {[%clk 0:00:12]} 0-1


[Site "https://www.chess.com"]

[Event "Titled Tuesday Blitz June 13 Late 2023"]
[White "Sydoryka, Vladyslav"]
[Black "Peycheva, Gergana"]
[WhiteFideId "14145928"]
[BlackFideId "2916711"]
[WhiteElo "2269"]
[BlackElo "2216"]
[Result "0-1"]
[Round "11"]
[TimeControl "180+2"]
[Date "2023.06.13"]
[WhiteClock "0:00:00"]
[BlackClock "0:00:09"]
[Board "47"]

1. c4 {[%clk 0:03:00]}  c5 {[%clk 0:02:53]} 2. g3 {[%clk 0:03:00]}  Nc6 {[%clk 0:02:54]} 3. Bg2 {[%clk 0:02:58]}  g6 {[%clk 0:02:54]} 4. Nc3 {[%clk 0:02:47]}  Bg7 {[%clk 0:02:54]} 5. Nf3 {[%clk 0:02:48]}  e5 {[%clk 0:02:53]} 6. O-O {[%clk 0:02:48]}  d6 {[%clk 0:02:53]} 7. a3 {[%clk 0:02:49]}  Be6 {[%clk 0:02:53]} 8. d3 {[%clk 0:02:43]}  Nge7 {[%clk 0:02:52]} 9. Ng5 {[%clk 0:02:40]}  Bc8 {[%clk 0:02:44]} 10. Rb1 {[%clk 0:02:38]}  a5 {[%clk 0:02:43]} 11. Qa4 {[%clk 0:01:35]}  O-O {[%clk 0:02:39]} 12. b4 {[%clk 0:01:24]}  Nd4 {[%clk 0:02:02]} 13. bxc5 {[%clk 0:01:17]}  dxc5 {[%clk 0:01:59]} 14. e3 {[%clk 0:01:05]}  Ndc6 {[%clk 0:01:53]} 15. Qc2 {[%clk 0:01:00]}  h6 {[%clk 0:01:39]} 16. Nge4 {[%clk 0:00:43]}  b6 {[%clk 0:01:39]} 17. Nd5 {[%clk 0:00:41]}  Rb8 {[%clk 0:01:27]} 18. Nxe7+ {[%clk 0:00:37]}  Qxe7 {[%clk 0:01:20]} 19. Nc3 {[%clk 0:00:37]}  Qd6 {[%clk 0:01:08]} 20. Bd2 {[%clk 0:00:23]}  Be6 {[%clk 0:01:03]} 21. Nd5 {[%clk 0:00:23]}  Bxd5 {[%clk 0:01:02]} 22. Bxd5 {[%clk 0:00:21]}  Ne7 {[%clk 0:01:02]} 23. e4 {[%clk 0:00:18]}  Kh7 {[%clk 0:01:02]} 24. Rb5 {[%clk 0:00:15]}  f5 {[%clk 0:01:01]} 25. exf5 {[%clk 0:00:11]}  Nxf5 {[%clk 0:00:54]} 26. Be4 {[%clk 0:00:09]}  Nd4 {[%clk 0:00:54]} 27. Qb1 {[%clk 0:00:09]}  Nxb5 {[%clk 0:00:53]} 28. Qxb5 {[%clk 0:00:10]}  Rf6 {[%clk 0:00:50]} 29. Be3 {[%clk 0:00:08]}  Rbf8 {[%clk 0:00:49]} 30. Qb3 {[%clk 0:00:04]}  R6f7 {[%clk 0:00:37]} 31. Qd1 {[%clk 0:00:05]}  Bf6 {[%clk 0:00:31]} 32. Qg4 {[%clk 0:00:05]}  Be7 {[%clk 0:00:13]} 33. h4 {[%clk 0:00:05]}  Kg7 {[%clk 0:00:11]} 34. Rb1 {[%clk 0:00:04]}  Bg5 {[%clk 0:00:09]} 35. hxg5 {[%clk 0:00:04]}  hxg5 {[%clk 0:00:09]} 36. Qxg5 {[%clk 0:00:04]}  Kg8 {[%clk 0:00:08]} 37. Bxg6 {[%clk 0:00:03]}  Rg7 {[%clk 0:00:08]} 38. Qh5 {[%clk 0:00:01]}  Qxg6 {[%clk 0:00:07]} 39. Qe2 {[%clk 0:00:02]}  Qe6 {[%clk 0:00:07]} 40. Kg2 {[%clk 0:00:01]}  Qf6 {[%clk 0:00:07]} 41. Rh1 {[%clk 0:00:02]}  e4 {[%clk 0:00:08]} 42. dxe4 {[%clk 0:00:01]}  Qe5 {[%clk 0:00:08]} 43. Bf4 {[%clk 0:00:01]}  Qd4 {[%clk 0:00:08]} 44. e5 {[%clk 0:00:00]}  Re8 {[%clk 0:00:09]} 0-1


[Site "https://www.chess.com"]

[Event "Titled Tuesday Blitz June 13 Late 2023"]
[White "robertoalejandro10"]
[Black "Uzcategui Rodriguez, Alejandro"]
[BlackFideId "3903400"]
[WhiteElo "2617"]
[BlackElo "2252"]
[Result "0-1"]
[Round "11"]
[TimeControl "180+2"]
[Date "2023.06.13"]
[WhiteClock "0:00:02"]
[BlackClock "0:00:51"]
[Board "48"]

1. Nf3 {[%clk 0:02:56]}  Nf6 {[%clk 0:02:59]} 2. c4 {[%clk 0:02:56]}  d6 {[%clk 0:02:59]} 3. Nc3 {[%clk 0:02:54]}  Nbd7 {[%clk 0:03:00]} 4. g3 {[%clk 0:02:49]}  e5 {[%clk 0:03:00]} 5. Bg2 {[%clk 0:02:49]}  Be7 {[%clk 0:03:00]} 6. O-O {[%clk 0:02:49]}  O-O {[%clk 0:03:01]} 7. b3 {[%clk 0:02:50]}  c6 {[%clk 0:03:01]} 8. Bb2 {[%clk 0:02:50]}  a6 {[%clk 0:02:57]} 9. e4 {[%clk 0:02:49]}  b5 {[%clk 0:02:55]} 10. d3 {[%clk 0:02:48]}  Bb7 {[%clk 0:02:42]} 11. Re1 {[%clk 0:02:47]}  Re8 {[%clk 0:02:42]} 12. d4 {[%clk 0:02:48]}  Bf8 {[%clk 0:02:41]} 13. dxe5 {[%clk 0:02:42]}  Nxe5 {[%clk 0:02:40]} 14. Nxe5 {[%clk 0:02:42]}  dxe5 {[%clk 0:02:41]} 15. Qc2 {[%clk 0:02:42]}  Qb6 {[%clk 0:02:40]} 16. Nd1 {[%clk 0:02:35]}  Bc5 {[%clk 0:02:38]} 17. Ne3 {[%clk 0:02:35]}  Rad8 {[%clk 0:02:35]} 18. Rac1 {[%clk 0:02:35]}  Bd4 {[%clk 0:02:33]} 19. c5 {[%clk 0:02:32]}  Qa5 {[%clk 0:02:30]} 20. a3 {[%clk 0:01:37]}  Bxb2 {[%clk 0:02:25]} 21. Qxb2 {[%clk 0:01:38]}  Rd2 {[%clk 0:02:25]} 22. Qa1 {[%clk 0:01:38]}  Red8 {[%clk 0:02:22]} 23. Nf5 {[%clk 0:01:32]}  Qc7 {[%clk 0:02:00]} 24. Nd6 {[%clk 0:01:30]}  Rd4 {[%clk 0:01:55]} 25. b4 {[%clk 0:01:26]}  Ne8 {[%clk 0:01:54]} 26. Nf5 {[%clk 0:01:15]}  Rd2 {[%clk 0:01:49]} 27. Rcd1 {[%clk 0:01:11]}  g6 {[%clk 0:01:47]} 28. Nd6 {[%clk 0:00:52]}  Rxd1 {[%clk 0:01:21]} 29. Rxd1 {[%clk 0:00:53]}  Nxd6 {[%clk 0:01:22]} 30. cxd6 {[%clk 0:00:33]}  Rxd6 {[%clk 0:01:21]} 31. Rc1 {[%clk 0:00:33]}  Rd4 {[%clk 0:01:11]} 32. Qc3 {[%clk 0:00:30]}  Rc4 {[%clk 0:01:11]} 33. Qd2 {[%clk 0:00:29]}  c5 {[%clk 0:01:06]} 34. Rd1 {[%clk 0:00:14]}  Rd4 {[%clk 0:01:05]} 35. Qc2 {[%clk 0:00:13]}  c4 {[%clk 0:01:06]} 36. Re1 {[%clk 0:00:10]}  Qd6 {[%clk 0:01:05]} 37. Bf1 {[%clk 0:00:10]}  Rd2 {[%clk 0:01:05]} 38. Qb1 {[%clk 0:00:10]}  Qd4 {[%clk 0:01:05]} 39. Re2 {[%clk 0:00:08]}  Rxe2 {[%clk 0:01:05]} 40. Bxe2 {[%clk 0:00:09]}  Bxe4 {[%clk 0:01:05]} 41. Qc1 {[%clk 0:00:08]}  c3 {[%clk 0:00:56]} 42. h4 {[%clk 0:00:08]}  c2 {[%clk 0:00:55]} 43. Qg5 {[%clk 0:00:06]}  Qa1+ {[%clk 0:00:51]} 44. Bf1 {[%clk 0:00:05]}  c1=Q {[%clk 0:00:52]} 45. Qd8+ {[%clk 0:00:02]}  Kg7 {[%clk 0:00:51]} 0-1


[Site "https://www.chess.com"]

[Event "Titled Tuesday Blitz June 13 Late 2023"]
[White "Moral Garcia, Serafin"]
[Black "Rottenwohrer Suarez, Juan"]
[WhiteFideId "2201925"]
[BlackFideId "32068182"]
[WhiteElo "2274"]
[BlackElo "2174"]
[Result "1-0"]
[Round "11"]
[TimeControl "180+2"]
[Date "2023.06.13"]
[WhiteClock "0:01:44"]
[BlackClock "0:00:45"]
[Board "49"]

1. e4 {[%clk 0:03:00]}  c5 {[%clk 0:03:00]} 2. Nf3 {[%clk 0:03:00]}  g6 {[%clk 0:03:01]} 3. d4 {[%clk 0:03:00]}  cxd4 {[%clk 0:03:02]} 4. Qxd4 {[%clk 0:03:00]}  Nf6 {[%clk 0:03:01]} 5. e5 {[%clk 0:03:00]}  Nc6 {[%clk 0:03:02]} 6. Qa4 {[%clk 0:02:43]}  Nd5 {[%clk 0:03:01]} 7. Qe4 {[%clk 0:02:43]}  Nb6 {[%clk 0:03:01]} 8. Nc3 {[%clk 0:02:43]}  Bg7 {[%clk 0:03:02]} 9. Bf4 {[%clk 0:02:41]}  d5 {[%clk 0:03:02]} 10. exd6 {[%clk 0:02:34]}  Bf5 {[%clk 0:03:03]} 11. dxe7 {[%clk 0:02:33]}  Qd7 {[%clk 0:02:00]} 12. Qe2 {[%clk 0:02:05]}  Nb4 {[%clk 0:01:55]} 13. Ne4 {[%clk 0:02:03]}  Qxe7 {[%clk 0:01:34]} 14. Nd6+ {[%clk 0:01:48]}  Kd7 {[%clk 0:01:24]} 15. Qxe7+ {[%clk 0:01:45]}  Kxe7 {[%clk 0:01:24]} 16. Nxf5+ {[%clk 0:01:46]}  gxf5 {[%clk 0:01:25]} 17. O-O-O {[%clk 0:01:46]}  Nxa2+ {[%clk 0:01:21]} 18. Kb1 {[%clk 0:01:46]}  Nb4 {[%clk 0:00:45]} 19. Bd6+ {[%clk 0:01:44]} 1-0


[Site "https://www.chess.com"]